bitfinex/quotes_BTCUSD_20230117
["timestamp","ask_amount","ask_price","bid_price","bid_amount"]
[1673981113330,1.14655774,21335.0,21333.0,0.23]
[1673981113592,0.3,21334.0,21333.0,0.23]
[1673981113867,0.931335,21334.0,21333.0,0.23]
[1673981114135,1.78927169,21334.0,21333.0,0.23]
[1673981114388,1.93927169,21334.0,21333.0,0.23]
[1673981114688,2.07885922,21334.0,21333.0,0.23]
[1673981114949,2.416711,21334.0,21333.0,0.23]
[1673981116018,2.60743695,21334.0,21333.0,0.23]
[1673981116279,2.60743695,21334.0,21333.0,0.09729106]
[1673981116280,3.64623501,21334.0,21333.0,0.09729106]
[1673981116555,0.06061917,21332.0,21329.0,0.00266855]
[1673981116851,1.68862964,21331.0,21329.0,0.00266855]
[1673981117110,1.19212764,21330.0,21329.0,0.00266855]
[1673981117392,1.47872469,21330.0,21329.0,0.00266855]
[1673981117653,1.61862849,21330.0,21329.0,0.00266855]
[1673981117911,1.82848419,21330.0,21329.0,0.00266855]
[1673981118389,2.95460133,21330.0,21329.0,0.00266855]
[1673981118647,3.09469215,21330.0,21329.0,0.00266855]
[1673981118901,2.83576992,21330.0,21329.0,0.00266855]
[1673981119154,3.67256992,21330.0,21329.0,0.00266855]
[1673981119435,3.79161264,21330.0,21329.0,6.855e-05]
[1673981119701,3.79161264,21330.0,21328.0,0.0013608]
[1673981119702,0.44642,21329.0,21328.0,0.0013608]
[1673981119960,3.25689385,21329.0,21328.0,0.0013608]
[1673981120218,3.60676025,21329.0,21328.0,0.0013608]
[1673981120479,4.46312209,21329.0,21328.0,0.0013608]
[1673981120738,4.08760341,21329.0,21328.0,0.0013608]
[1673981121000,4.13463246,21329.0,21328.0,0.0013608]
[1673981121295,4.22563246,21329.0,21328.0,0.0013608]
[1673981121561,4.22563246,21329.0,21324.0,0.00487067]
[1673981121562,0.2817,21327.0,21324.0,0.00487067]
[1673981121829,0.0744,21325.0,21324.0,0.00487067]
[1673981122090,1.78946769,21325.0,21324.0,0.00487067]
[1673981122338,1.79796769,21325.0,21324.0,0.00487067]
[1673981122885,1.49816769,21325.0,21324.0,0.00487067]
[1673981123147,1.98022178,21325.0,21324.0,0.00487067]
[1673981123652,2.13022178,21325.0,21324.0,0.00487067]
[1673981124170,2.36469178,21325.0,21324.0,0.00487067]
[1673981124429,2.66469178,21325.0,21324.0,0.00487067]
[1673981124705,2.94599178,21325.0,21324.0,0.00487067]
[1673981124960,2.94605178,21325.0,21324.0,0.00487067]
[1673981125231,3.20148782,21325.0,21324.0,0.00487067]
[1673981125486,0.15,21324.0,21322.0,0.00139164]
[1673981125757,3.33485057,21323.0,21322.0,0.00139164]
[1673981126070,4.41203921,21323.0,21322.0,0.00139164]
[1673981126340,4.88614138,21323.0,21322.0,0.00046386]
[1673981126606,3.82092462,21323.0,21322.0,0.00046386]
[1673981126868,3.82092462,21323.0,21321.0,0.00033453]
[1673981127122,3.82092462,21323.0,21321.0,0.18322148]
[1673981127123,1.91597062,21323.0,21321.0,0.18322148]
[1673981127401,1.91597062,21323.0,21321.0,0.00033453]
[1673981127402,2.00697062,21323.0,21321.0,0.00033453]
[1673981127663,1.91597062,21323.0,21321.0,0.00033453]
[1673981127971,2.00697062,21323.0,21321.0,0.00033453]
[1673981128230,1.99141219,21323.0,21321.0,0.00033453]
[1673981128483,2.08241219,21323.0,21321.0,0.00033453]
[1673981129028,1.91597062,21323.0,21321.0,0.00033453]
[1673981129283,0.15,21322.0,21321.0,0.00033453]
[1673981129539,1.86519969,21322.0,21321.0,0.00033453]
[1673981130832,1.95619969,21322.0,21321.0,0.00033453]
[1673981131628,0.53761462,21321.0,21319.0,0.00106959]
[1673981131901,2.35749069,21320.0,21319.0,0.00106959]
[1673981132676,2.34899069,21320.0,21319.0,0.00106959]
[1673981132931,2.04899069,21320.0,21319.0,0.00106959]
[1673981133204,2.43999069,21320.0,21319.0,0.23106959]
[1673981133473,2.07789099,21320.0,21319.0,0.23106959]
[1673981133752,1.97094769,21320.0,21319.0,0.23106959]
[1673981134228,1.88844769,21320.0,21319.0,0.23106959]
[1673981134492,1.88844769,21320.0,21319.0,0.00106959]
[1673981134740,1.98944769,21320.0,21319.0,0.00106959]
[1673981135010,2.35257382,21320.0,21319.0,0.00106959]
[1673981135535,2.44357382,21320.0,21319.0,0.00106959]
[1673981137082,1.98944769,21320.0,21319.0,0.00106959]
[1673981137365,1.60689769,21320.0,21319.0,0.00106959]
[1673981138168,1.60695769,21320.0,21319.0,0.00106959]
[1673981138453,1.75695769,21320.0,21319.0,0.00106959]
[1673981138709,1.96595769,21320.0,21319.0,0.00106959]
[1673981138967,2.59077882,21320.0,21319.0,0.00056647]
[1673981139264,2.49977882,21320.0,21319.0,0.00056647]
[1673981139536,2.59077882,21320.0,21319.0,0.00056647]
[1673981139811,2.87247882,21320.0,21319.0,0.00056647]
[1673981140358,0.00036457,21318.0,21312.0,0.00672265]
[1673981140620,2.14980564,21317.0,21312.0,0.00672265]
[1673981140876,0.15,21315.0,21312.0,0.00672265]
[1673981141139,0.47720169,21314.0,21312.0,0.00672265]
[1673981141405,0.47720169,21313.0,21312.0,0.00672265]
[1673981141658,1.41559569,21313.0,21312.0,0.00672265]
[1673981142010,1.71559569,21313.0,21312.0,0.00672265]
[1673981142198,1.41559569,21313.0,21312.0,0.00672265]
[1673981142457,1.71559569,21313.0,21312.0,0.00672265]
[1673981142748,0.00672,21312.0,21300.0,0.00019]
[1673981143031,0.938596,21309.0,21304.0,0.23753008]
[1673981143333,0.19072595,21308.0,21306.0,0.53271392]
[1673981143583,0.469248,21311.0,21307.0,0.00011298]
[1673981143881,0.091,21313.0,21308.0,0.90726922]
[1673981143882,0.469207,21313.0,21308.0,0.90726922]
[1673981144134,0.469145,21316.0,21309.0,1.51656095]
[1673981144395,1.3173278,21316.0,21310.0,0.90973485]
[1673981144680,0.091,21311.0,21310.0,1.3445369]
[1673981144952,0.469128,21317.0,21310.0,1.41424987]
[1673981145237,0.091,21316.0,21311.0,0.320825]
[1673981145496,0.091,21316.0,21315.0,0.0693]
[1673981145776,0.091,21316.0,21315.0,0.390125]
[1673981146061,0.00499761,21315.0,21311.0,0.18288695]
[1673981146321,0.00499761,21315.0,21310.0,1.5288229]
[1673981146322,0.19072595,21314.0,21310.0,1.5288229]
[1673981146603,0.19072595,21313.0,21310.0,0.4010229]
[1673981147131,0.5731993,21315.0,21310.0,0.25748695]
[1673981147385,0.00499761,21315.0,21311.0,0.18288695]
[1673981147640,0.091,21314.0,21311.0,0.18288695]
[1673981147926,0.00499761,21315.0,21310.0,0.0746]
[1673981148184,0.57172572,21317.0,21308.0,0.62875819]
[1673981148185,0.09571938,21313.0,21308.0,0.55265819]
[1673981148452,0.74429234,21312.0,21307.0,0.0746]
[1673981148753,0.19072595,21311.0,21307.0,0.0746]
[1673981149316,0.30471938,21313.0,21308.0,0.18288695]
[1673981149568,0.00471938,21313.0,21309.0,0.21115363]
[1673981149851,0.091,21312.0,21310.0,0.57791195]
[1673981150351,0.091,21312.0,21311.0,0.395786]
[1673981150355,6e-05,21315.0,21311.0,0.395786]
[1673981150612,6e-05,21315.0,21312.0,0.321186]
[1673981150875,6e-05,21315.0,21312.0,0.18288695]
[1673981151134,6e-05,21315.0,21313.0,0.15]
[1673981151415,6e-05,21315.0,21313.0,0.33288695]
[1673981151673,6e-05,21315.0,21314.0,0.321186]
[1673981151944,6e-05,21315.0,21314.0,0.395286]
[1673981152206,0.09106,21315.0,21314.0,0.395286]
[1673981152463,0.83056457,21318.0,21314.0,0.395286]
[1673981152464,6e-05,21316.0,21314.0,0.395286]
[1673981152722,6e-05,21316.0,21314.0,0.0741]
[1673981153248,0.09,21315.0,21314.0,0.07420758]
[1673981153513,0.09,21315.0,21314.0,0.0741]
[1673981153791,6e-05,21316.0,21314.0,0.0741]
[1673981154079,0.28178595,21316.0,21313.0,0.0746]
[1673981154345,0.0047626,21315.0,21310.0,1.2498]
[1673981154622,0.19072595,21314.0,21310.0,0.7716]
[1673981154883,0.19072595,21314.0,21310.0,1.23440037]
[1673981155165,0.19072595,21314.0,21310.0,0.53720037]
[1673981155507,0.19072595,21314.0,21311.0,0.0001076]
[1673981155749,0.0957626,21315.0,21310.0,0.53720037]
[1673981156018,0.49548855,21315.0,21310.0,0.72008732]
[1673981156275,0.091,21314.0,21310.0,0.72008732]
[1673981156532,0.19548855,21315.0,21311.0,0.0001076]
[1673981156846,0.0957626,21315.0,21312.0,0.321186]
[1673981157099,0.0957626,21315.0,21313.0,0.321186]
[1673981157362,0.0957626,21315.0,21312.0,0.0746]
[1673981157615,0.3957626,21315.0,21312.0,0.0746]
[1673981157871,0.3047626,21315.0,21312.0,0.0746]
[1673981158403,0.0047626,21315.0,21312.0,0.0746]
[1673981158673,0.0957626,21315.0,21312.0,0.0746]
[1673981158938,0.47720169,21314.0,21307.0,0.4609]
[1673981159189,1.08911584,21313.0,21310.0,0.0746]
[1673981159445,0.47720169,21312.0,21310.0,0.0746]
[1673981160769,0.00494159,21313.0,21310.0,0.07480472]
[1673981161010,0.00494159,21313.0,21311.0,0.395786]
[1673981161248,0.091,21312.0,21311.0,0.0746]
[1673981161505,0.7762,21314.0,21311.0,0.0746]
[1673981161772,0.09,21312.0,21311.0,0.0746]
[1673981162040,0.48726169,21316.0,21311.0,0.395786]
[1673981162318,0.064,21312.0,21311.0,0.0746]
[1673981162571,0.01006,21316.0,21311.0,0.395786]
[1673981162830,0.01006,21316.0,21312.0,0.321186]
[1673981163090,0.01006,21316.0,21315.0,0.0745]
[1673981163463,0.01006,21316.0,21315.0,0.395686]
[1673981163638,0.01,21316.0,21315.0,0.0745]
[1673981163894,0.101,21316.0,21315.0,0.0745]
[1673981164148,0.01,21316.0,21315.0,0.0745]
[1673981164409,0.101,21316.0,21315.0,0.0695]
[1673981164661,0.01,21316.0,21315.0,0.0695]
[1673981164928,0.101,21316.0,21315.0,0.390686]
[1673981165165,0.01,21316.0,21315.0,0.390686]
[1673981165683,0.101,21316.0,21315.0,0.85415287]
[1673981165939,0.101,21316.0,21315.0,0.92875287]
[1673981166460,0.01,21316.0,21315.0,0.92875287]
[1673981166714,0.10006,21316.0,21315.0,0.92875287]
[1673981170372,0.10006,21316.0,21315.0,0.78465287]
[1673981172475,0.30082841,21316.0,21312.0,0.0743]
[1673981172739,0.19072595,21315.0,21311.0,0.0746]
[1673981172993,0.19072595,21314.0,21311.0,0.0746]
[1673981173527,0.02004246,21316.0,21311.0,0.0746]
[1673981173794,0.80451344,21316.0,21311.0,0.25748695]
[1673981174069,0.49047098,21316.0,21311.0,0.25748695]
[1673981174314,0.004,21314.0,21312.0,0.7567632]
[1673981174572,0.01,21316.0,21313.0,0.47086306]
[1673981174843,0.1,21316.0,21315.0,0.0746]
[1673981175102,0.1,21316.0,21315.0,0.57867295]
[1673981175374,0.1,21316.0,21315.0,0.470386]
[1673981175614,0.01,21316.0,21315.0,0.470386]
[1673981175880,0.02,21316.0,21315.0,0.470386]
[1673981176147,0.02,21316.0,21315.0,0.88790435]
[1673981176465,0.02,21316.0,21315.0,0.88290435]
[1673981176466,0.01,21316.0,21315.0,0.88290435]
[1673981176662,0.014,21316.0,21315.0,0.81330435]
[1673981177739,0.01,21316.0,21315.0,0.81330435]
[1673981177995,0.014,21316.0,21315.0,0.78830435]
[1673981178758,0.014,21316.0,21315.0,1.16270435]
[1673981179072,6e-05,21318.0,21316.0,0.02050481]
[1673981179300,0.6788,21322.0,21317.0,2.31303772]
[1673981179571,0.6788,21322.0,21319.0,0.34723365]
[1673981179835,0.7544,21323.0,21321.0,0.4318]
[1673981180104,0.0114095,21324.0,21322.0,0.470315]
[1673981180377,0.0114095,21324.0,21323.0,0.470015]
[1673981180878,0.0114095,21324.0,21323.0,0.95290195]
[1673981181136,0.0114095,21324.0,21323.0,0.470015]
[1673981181681,0.0114095,21324.0,21323.0,0.395415]
[1673981181950,0.0174095,21324.0,21323.0,0.395415]
[1673981182220,0.0174095,21324.0,21323.0,0.545415]
[1673981182221,0.0114095,21324.0,21323.0,0.545415]
[1673981182484,0.0174095,21324.0,21323.0,0.42249051]
[1673981182741,0.0114095,21324.0,21323.0,0.39649051]
[1673981183048,0.0174095,21324.0,21323.0,0.42249051]
[1673981183611,0.0114095,21324.0,21323.0,0.39649051]
[1673981183869,0.0174095,21324.0,21323.0,0.42249051]
[1673981184690,0.0174095,21324.0,21323.0,0.34819051]
[1673981184946,0.0114095,21324.0,21323.0,0.321115]
[1673981185470,0.0174095,21324.0,21323.0,0.347115]
[1673981185728,0.0114095,21324.0,21323.0,0.321115]
[1673981186000,0.0184095,21324.0,21323.0,0.347115]
[1673981186779,0.0184095,21324.0,21323.0,0.026]
[1673981187092,0.0184095,21324.0,21323.0,0.322115]
[1673981188732,0.0284095,21324.0,21323.0,0.322115]
[1673981189781,0.0284095,21324.0,21323.0,0.445315]
[1673981190046,0.0184095,21324.0,21323.0,0.445315]
[1673981190582,0.0184095,21324.0,21323.0,0.868515]
[1673981190871,0.0184095,21324.0,21323.0,1.66499184]
[1673981191161,0.0184095,21324.0,21323.0,1.95020973]
[1673981191432,0.0184095,21324.0,21323.0,1.98589675]
[1673981191956,0.0114095,21324.0,21323.0,1.98489675]
[1673981192266,0.0144095,21324.0,21323.0,2.19789675]
[1673981192531,0.0114095,21324.0,21323.0,2.13489675]
[1673981192809,0.0144095,21324.0,21323.0,2.19789675]
[1673981193880,0.01099072,21325.0,21324.0,0.08211]
[1673981194152,0.01099072,21325.0,21324.0,1.91181337]
[1673981194410,0.01099072,21325.0,21324.0,2.0634317]
[1673981194689,0.01099072,21325.0,21324.0,2.06450716]
[1673981195547,0.7978,21328.0,21325.0,0.15]
[1673981195817,0.7978,21328.0,21327.0,0.2453]
[1673981196096,0.0128289,21330.0,21327.0,1.804193]
[1673981196405,0.0128289,21330.0,21329.0,0.2721]
[1673981196666,0.0128289,21330.0,21329.0,0.593215]
[1673981196951,0.0128289,21330.0,21329.0,2.420795]
[1673981197212,0.01239767,21333.0,21330.0,0.15]
[1673981197506,0.01239767,21333.0,21332.0,0.0743]
[1673981197767,0.01239767,21333.0,21332.0,1.203715]
[1673981198025,0.01239767,21333.0,21332.0,1.408073]
[1673981198557,0.01639767,21333.0,21332.0,1.415073]
[1673981198828,0.01239767,21333.0,21332.0,1.708073]
[1673981199600,0.01239767,21333.0,21332.0,1.858073]
[1673981199863,0.01311824,21334.0,21333.0,0.0050417]
[1673981200135,0.01311824,21334.0,21333.0,1.9536807]
[1673981200396,0.01311824,21334.0,21333.0,2.63888794]
[1673981200640,2.4e-07,21334.0,21333.0,2.86228695]
[1673981200898,0.01695459,21341.0,21334.0,0.40222006]
[1673981201146,0.01695459,21341.0,21340.0,0.0743]
[1673981201407,0.01695459,21341.0,21340.0,1.98432557]
[1673981201655,0.01695459,21341.0,21340.0,2.45292857]
[1673981202213,0.01695459,21341.0,21340.0,2.27004162]
[1673981202956,0.01695459,21341.0,21340.0,2.27804162]
[1673981203209,0.01695459,21341.0,21340.0,2.27004162]
[1673981203455,0.01695459,21341.0,21340.0,2.27304162]
[1673981203710,0.01695459,21341.0,21340.0,2.27004162]
[1673981204203,0.01695459,21341.0,21340.0,2.64474162]
[1673981204455,0.01695459,21341.0,21340.0,2.74074162]
[1673981204706,0.01695459,21341.0,21340.0,2.92944162]
[1673981204955,0.01695459,21341.0,21340.0,3.02544162]
[1673981205206,0.01695459,21341.0,21340.0,2.74094162]
[1673981205695,0.01695459,21341.0,21340.0,3.03334162]
[1673981206239,0.01695459,21341.0,21340.0,2.195527]
[1673981206507,0.01695459,21341.0,21340.0,2.286527]
[1673981206986,0.09906459,21341.0,21340.0,1.817924]
[1673981207240,0.09906459,21341.0,21340.0,1.258321]
[1673981207496,0.09906459,21341.0,21340.0,1.016206]
[1673981207497,0.17376459,21341.0,21340.0,1.016206]
[1673981207780,0.09906459,21341.0,21340.0,0.547603]
[1673981208502,0.09906459,21341.0,21340.0,0.54752997]
[1673981208998,0.17376459,21341.0,21340.0,0.079]
[1673981209759,0.17376459,21341.0,21338.0,1.35200549]
[1673981210014,0.29479054,21341.0,21340.0,0.003]
[1673981210314,0.01695459,21341.0,21340.0,0.937206]
[1673981210519,0.02195459,21341.0,21340.0,0.937206]
[1673981210771,0.01695459,21341.0,21340.0,1.258321]
[1673981211019,0.02195459,21341.0,21340.0,1.258321]
[1673981212034,0.01695459,21341.0,21340.0,1.258321]
[1673981212298,0.02195459,21341.0,21340.0,1.265321]
[1673981212531,0.01695459,21341.0,21340.0,1.258321]
[1673981212776,0.01695459,21341.0,21340.0,1.268321]
[1673981213039,0.01695459,21341.0,21340.0,1.4423697]
[1673981213288,0.01695459,21341.0,21340.0,1.7634847]
[1673981213566,0.01695459,21341.0,21340.0,1.7534847]
[1673981213788,0.02195459,21341.0,21340.0,1.7564847]
[1673981214795,0.01695459,21341.0,21340.0,1.7534847]
[1673981215048,0.01695459,21341.0,21340.0,1.7634847]
[1673981215575,0.01695459,21341.0,21340.0,1.2948817]
[1673981215829,0.01695459,21341.0,21340.0,0.9737667]
[1673981216569,0.01695459,21341.0,21340.0,1.2848817]
[1673981216814,0.02195459,21341.0,21340.0,1.7604847]
[1673981217311,0.02195459,21341.0,21340.0,1.29347894]
[1673981217556,0.02195459,21341.0,21340.0,1.76208194]
[1673981218567,0.01695459,21341.0,21340.0,1.75508194]
[1673981218816,0.02195459,21341.0,21340.0,1.75808194]
[1673981219322,0.02195459,21341.0,21340.0,2.22668494]
[1673981219576,0.02195459,21341.0,21340.0,3.77066617]
[1673981222398,0.02195459,21341.0,21340.0,3.77916617]
[1673981222912,0.02195459,21341.0,21340.0,3.90116617]
[1673981223377,0.01300039,21342.0,21341.0,0.24103924]
[1673981223633,0.01300039,21342.0,21341.0,1.63081624]
[1673981223891,0.01300039,21342.0,21341.0,1.93081624]
[1673981224675,0.01300039,21342.0,21341.0,2.02281624]
[1673981224926,0.01300039,21342.0,21341.0,1.93081624]
[1673981225179,0.01300039,21342.0,21341.0,2.02281624]
[1673981225433,0.01300039,21342.0,21341.0,2.8519781]
[1673981225691,0.01300039,21342.0,21341.0,2.9439781]
[1673981225942,3.9e-07,21342.0,21341.0,3.82882419]
[1673981226193,0.01544299,21343.0,21341.0,3.87585324]
[1673981226450,0.01544299,21343.0,21342.0,0.875615]
[1673981226710,0.01544299,21343.0,21342.0,1.812733]
[1673981227016,0.01544299,21343.0,21342.0,1.258233]
[1673981228113,0.01544299,21343.0,21342.0,1.350233]
[1673981228302,0.01544299,21343.0,21342.0,1.650233]
[1673981229076,0.01544299,21343.0,21342.0,1.800233]
[1673981229329,0.01544299,21343.0,21342.0,1.808733]
[1673981229580,0.01544299,21343.0,21342.0,1.658733]
[1673981229839,0.01544299,21343.0,21342.0,1.808733]
[1673981230353,0.01544299,21343.0,21342.0,1.658733]
[1673981230609,0.01544299,21343.0,21342.0,1.350233]
[1673981231647,0.01544299,21343.0,21342.0,1.650233]
[1673981231912,0.01544299,21343.0,21342.0,1.645233]
[1673981232160,0.01544299,21343.0,21342.0,1.345233]
[1673981232714,0.01544299,21343.0,21342.0,1.495233]
[1673981232938,0.01544299,21343.0,21342.0,1.345233]
[1673981233448,0.28827894,21343.0,21342.0,1.345233]
[1673981233753,0.09755299,21343.0,21342.0,1.029118]
[1673981234011,0.01544299,21343.0,21342.0,1.029118]
[1673981234268,0.01544299,21343.0,21342.0,1.087118]
[1673981234563,0.01544299,21343.0,21342.0,1.407937]
[1673981235326,0.01544299,21343.0,21342.0,1.707937]
[1673981235590,0.01544299,21343.0,21342.0,1.257937]
[1673981236109,0.01544299,21343.0,21341.0,1.2756701]
[1673981236110,0.28827894,21343.0,21341.0,1.2756701]
[1673981236383,0.123,21342.0,21341.0,1.7442351]
[1673981236911,0.123,21342.0,21341.0,1.2756561]
[1673981237189,0.123,21342.0,21341.0,0.8070911]
[1673981237433,0.149,21342.0,21341.0,0.8070911]
[1673981238510,0.149,21342.0,21341.0,1.2756721]
[1673981239514,0.156,21342.0,21341.0,0.8100911]
[1673981239799,0.29574503,21342.0,21341.0,0.8100911]
[1673981240041,0.149,21342.0,21341.0,1.2756721]
[1673981240306,0.149,21342.0,21341.0,1.2826721]
[1673981240307,0.29574503,21342.0,21341.0,1.2826721]
[1673981240573,0.29574503,21342.0,21341.0,0.8140911]
[1673981240818,0.156,21342.0,21341.0,0.8140911]
[1673981242365,0.149,21342.0,21341.0,0.8070911]
[1673981242887,0.28874503,21342.0,21341.0,0.8070911]
[1673981244704,0.29574503,21342.0,21341.0,0.8142039]
[1673981244953,0.29574503,21342.0,21341.0,0.8140911]
[1673981245471,0.29574503,21342.0,21341.0,0.99697805]
[1673981245745,0.007,21342.0,21341.0,1.7513659]
[1673981245984,0.01544299,21343.0,21341.0,1.7443659]
[1673981246237,0.007,21342.0,21341.0,1.7513659]
[1673981246490,0.007,21342.0,21341.0,1.7512531]
[1673981246749,0.15518802,21343.0,21341.0,1.7443659]
[1673981247769,0.007,21342.0,21341.0,1.7513659]
[1673981248032,0.01544299,21343.0,21342.0,0.51157106]
[1673981248289,0.01544299,21343.0,21342.0,1.76950806]
[1673981248802,0.02244299,21343.0,21342.0,1.76950806]
[1673981249063,0.01544299,21343.0,21342.0,1.76950806]
[1673981249316,0.02244299,21343.0,21342.0,1.77650806]
[1673981249570,0.02244299,21343.0,21342.0,1.76950806]
[1673981249823,0.02944299,21343.0,21342.0,1.77650806]
[1673981251113,0.02944299,21343.0,21342.0,1.45568906]
[1673981251384,0.43461397,21343.0,21342.0,0.007]
[1673981251627,1.13844584,21343.0,21342.0,0.007]
[1673981252139,0.52798544,21343.0,21342.0,0.007]
[1673981252435,0.45328544,21343.0,21342.0,0.475559]
[1673981252706,0.2436608,21343.0,21342.0,0.944118]
[1673981252947,0.02944299,21343.0,21342.0,0.944118]
[1673981253457,0.02944299,21343.0,21342.0,1.264937]
[1673981254454,0.02944299,21343.0,21342.0,1.2650498]
[1673981254935,0.02944299,21343.0,21342.0,1.264937]
[1673981255220,0.1695608,21343.0,21342.0,0.475559]
[1673981255479,0.37918544,21343.0,21342.0,0.475559]
[1673981255727,0.31336763,21343.0,21342.0,0.007]
[1673981256000,0.453499,21343.0,21342.0,0.007]
[1673981256244,0.59312684,21343.0,21342.0,0.007]
[1673981256545,1.1728582,21343.0,21342.0,0.00690754]
[1673981257004,1.77743297,21343.0,21342.0,0.00690754]
[1673981257259,1.1728582,21343.0,21342.0,0.00690754]
[1673981257761,1.42772261,21343.0,21342.0,0.00690754]
[1673981258015,1.77742462,21343.0,21342.0,0.00690754]
[1673981258552,1.96620241,21343.0,21342.0,0.00690754]
[1673981259064,2.24646641,21343.0,21342.0,0.00690754]
[1673981259535,1.96620241,21343.0,21342.0,0.00690754]
[1673981260253,2.24644703,21343.0,21342.0,0.00690754]
[1673981261524,3.20159252,21343.0,21342.0,0.00272712]
[1673981261780,2.46840209,21343.0,21342.0,0.00272712]
[1673981262033,2.60794811,21343.0,21342.0,0.00272712]
[1673981262295,3.64115382,21343.0,21342.0,0.00272712]
[1673981263099,3.2016078,21343.0,21342.0,0.00272712]
[1673981265443,2.72440611,21343.0,21342.0,0.00272712]
[1673981265690,2.42440611,21343.0,21342.0,0.00272712]
[1673981265953,2.72440611,21343.0,21342.0,0.00272712]
[1673981267728,3.1450467,21343.0,21342.0,0.00272712]
[1673981267982,4.19107444,21343.0,21342.0,0.00272712]
[1673981268234,4.30250238,21343.0,21342.0,0.00068159]
[1673981268487,4.01916247,21343.0,21342.0,0.00068159]
[1673981268741,4.48769947,21343.0,21342.0,0.00068159]
[1673981269018,4.47369947,21343.0,21341.0,0.00892924]
[1673981269268,2.00789347,21342.0,21341.0,0.00892924]
[1673981269528,3.27125223,21342.0,21341.0,0.00892924]
[1673981270045,3.49466282,21342.0,21341.0,0.00892924]
[1673981270815,4.35496451,21342.0,21341.0,0.00892924]
[1673981271079,4.40200236,21342.0,21341.0,0.00892924]
[1673981271369,4.81838315,21342.0,21341.0,0.00892924]
[1673981271605,4.70087565,21342.0,21341.0,0.00892924]
[1673981271927,4.79187565,21342.0,21341.0,0.00892924]
[1673981272144,0.00889076,21341.0,21333.0,0.94533098]
[1673981272406,0.92393166,21340.0,21337.0,0.4478369]
[1673981272683,0.14013597,21339.0,21337.0,0.63072385]
[1673981272934,0.14013597,21339.0,21337.0,0.91671756]
[1673981273240,0.14013597,21339.0,21337.0,1.09938985]
[1673981273464,0.09,21340.0,21338.0,0.57840595]
[1673981273725,0.15557896,21343.0,21341.0,0.47947177]
[1673981274008,0.15557896,21343.0,21342.0,0.395519]
[1673981274009,0.01544299,21343.0,21342.0,0.395519]
[1673981274243,0.01544299,21343.0,21342.0,0.72614595]
[1673981274550,0.01544299,21343.0,21342.0,0.543259]
[1673981274776,0.01544299,21343.0,21342.0,0.693259]
[1673981275317,0.01544299,21343.0,21342.0,0.543259]
[1673981275552,0.01544299,21343.0,21342.0,0.864078]
[1673981275830,0.01544299,21343.0,21342.0,1.014078]
[1673981276081,0.02244299,21343.0,21342.0,0.873078]
[1673981276847,0.02244299,21343.0,21342.0,0.552259]
[1673981277625,0.02244299,21343.0,21342.0,0.776859]
[1673981277877,0.02244299,21343.0,21342.0,1.097678]
[1673981278136,0.02244299,21343.0,21342.0,0.947678]
[1673981278405,0.02244299,21343.0,21342.0,0.626859]
[1673981278901,0.02244299,21343.0,21342.0,0.947678]
[1673981279816,0.02244299,21343.0,21342.0,0.009]
[1673981279998,0.16257896,21343.0,21342.0,0.009]
[1673981281296,0.02244299,21343.0,21342.0,0.009]
[1673981281562,0.16257896,21343.0,21342.0,0.009]
[1673981281868,0.02244299,21343.0,21342.0,1.023078]
[1673981282109,0.02244299,21343.0,21342.0,0.873078]
[1673981283416,0.02244299,21343.0,21342.0,1.023078]
[1673981283978,0.02244299,21343.0,21342.0,1.382478]
[1673981284234,0.02244299,21343.0,21342.0,1.682478]
[1673981285297,0.02244299,21343.0,21342.0,2.53455713]
[1673981285565,0.01544299,21345.0,21342.0,2.53455713]
[1673981285830,0.01544299,21345.0,21344.0,0.1489]
[1673981286082,0.01544299,21345.0,21344.0,1.883764]
[1673981286902,0.02344299,21345.0,21344.0,3.12735264]
[1673981287200,0.01571061,21347.0,21345.0,0.4339]
[1673981287483,0.01571061,21347.0,21346.0,2.034732]
[1673981287748,0.01571061,21347.0,21346.0,2.183632]
[1673981288011,0.01571061,21347.0,21346.0,2.68797406]
[1673981288813,0.01571061,21347.0,21346.0,2.97227406]
[1673981289081,0.01571061,21347.0,21346.0,3.04527406]
[1673981289607,0.01571061,21347.0,21346.0,3.04742274]
[1673981289876,0.01571061,21347.0,21346.0,2.97442274]
[1673981290185,0.01571061,21347.0,21346.0,2.52702274]
[1673981290432,0.01571061,21347.0,21346.0,2.51852274]
[1673981291524,0.01311824,21350.0,21346.0,3.78244054]
[1673981291799,0.01311824,21350.0,21349.0,0.4328]
[1673981292057,0.01311824,21350.0,21349.0,2.92909138]
[1673981292575,0.01411824,21350.0,21349.0,2.92909138]
[1673981292877,1.52801766,21358.0,21350.0,0.15]
[1673981293128,1.52801766,21358.0,21355.0,0.0747]
[1673981293399,0.3,21357.0,21356.0,0.50370595]
[1673981293652,0.01638169,21358.0,21355.0,0.468263]
[1673981293939,0.01738169,21358.0,21355.0,0.18288695]
[1673981294214,0.01638169,21358.0,21354.0,0.90915537]
[1673981294471,0.01638169,21358.0,21355.0,0.468272]
[1673981294743,0.01638169,21358.0,21356.0,0.42751419]
[1673981295027,0.01638169,21358.0,21357.0,0.320819]
[1673981295768,0.03138169,21358.0,21357.0,0.320819]
[1673981296025,0.01525156,21361.0,21356.0,0.42751419]
[1673981296279,0.01525156,21361.0,21358.0,0.4139606]
[1673981296547,0.01525156,21361.0,21359.0,0.00010737]
[1673981296811,0.01525156,21361.0,21358.0,0.4139606]
[1673981297073,0.19072595,21360.0,21358.0,0.4139606]
[1673981297344,0.320819,21359.0,21357.0,0.007]
[1673981297599,0.15,21358.0,21357.0,0.007]
[1673981297899,0.470819,21358.0,21357.0,0.007]
[1673981298171,0.470819,21358.0,21354.0,0.49709443]
[1673981298470,0.470819,21358.0,21354.0,0.96538643]
[1673981298471,0.34072595,21358.0,21354.0,0.96538643]
[1673981299250,0.34072595,21358.0,21354.0,0.49709443]
[1673981299562,0.001,21358.0,21354.0,0.68698138]
[1673981299816,0.001,21358.0,21354.0,1.15527338]
[1673981300076,0.0747,21359.0,21354.0,0.96538643]
[1673981300331,0.26542595,21359.0,21354.0,1.14827338]
[1673981300614,0.19072595,21359.0,21354.0,1.14827338]
[1673981300912,0.001,21358.0,21354.0,1.15427338]
[1673981301213,0.38019499,21360.0,21355.0,0.00021449]
[1673981301214,0.08019499,21360.0,21355.0,0.00021449]
[1673981301470,0.001,21359.0,21356.0,0.47304539]
[1673981301722,0.08019499,21360.0,21356.0,0.65593234]
[1673981301980,0.542669,21360.0,21356.0,0.65593234]
[1673981302519,0.0755,21360.0,21356.0,0.65593234]
[1673981302783,0.320819,21359.0,21356.0,0.47304539]